Workbook

Sheet Introduction
B3: KSU-Beef Cow Lease
B5: Excel spreadsheet for estabishing a calf-income split or cash rental rate for leasing a beef cow herd
L8: Version- 12.15.2022
B28: INTRODUCTION
B29: The KSU-Beef Cow Lease spreadsheet takes a budgeting approach to estimate the costs and returns for a year-long lease of a beef cow herd. The Cattle Owner and Livestock Operator need to determine who will be contributing each expense and calf income will be shared accordingly. Note: If the cowherd will be transitioning from the Cattle Owner to the Livestock Operator the spreadsheet should be re-evaluated every year as cattle ownership changes.
B31: This spreasheet is directly linked to the K-State Beef Farm Management Guides and will be updated quarterly. Users still need to enter prices/costs for their own production scenario.
B32: INSTRUCTIONS FOR THE USER:
B33: Be sure to "Enable Content" and "Enable Macros" for the spreadsheet to function correctly. Blue values are inputs that should be changed from the defaults to match your operation. Black values are automatically calculated.
B36: There are two spreadsheets for cow leasing: Lease with Raised Repl assumes that heifers will be retained for replacements from the cowherd and expenses in developing them are split the same as other cowherd expenses. Lease with Purchased Repl assumes that all calves will be sold or transitioned out of the herd at weaning and bred heifers will be purchased for replacements.
B41: FOR MORE INFORMATION:
B42: Developed by:
B44: Robin Reid | G44: Glynn T. Tonsor, Ph.D.
B45: Extension Associate | G45: Agricultural Economist
B46: Department of Agricultural Economics | G46: Department of Agricultural Economics
B47: Kansas State University | G47: Kansas State University
B48: robinreid@ksu.edu | G48: gtonsor@k-state.edu
B49: 785-532-0964 | G49: 785-532-1518
B51: ACKNOWLEDGEMENTS:
B52: The developers would like to thank the K-State Beef Team for their contributions: Dr. Sandy Johnson, Dr. Dale Blasi, Dr. Joel DeRouchey, Dr. Jaymelynn Farney, Dr. Justin Waggoner, and Dr. Bob Weaber www.KSUBeef.org
B56: Copyright 2022 AgManager.info, K-State Department of Agricultural Economics

Sheet Prices
A1: 2023 Production Year
A2: Five Years Out Prices
B3: =A1 -> 2023 Production Year | C3: =A2 -> Five Years Out Prices
B4: (as of Dec. 15th, 2022) | C4: (Nov. 2022 USDA)
A5: Corn ($/bu) | B5: 7.3 | C5: 4.3 | D5: http://www.usda.gov/oce/commodity/projections/
A6: Soybean Meal ($/ton) | B6: 455.1 | C6: 341 | D6: http://www.usda.gov/oce/commodity/projections/
A7: DDGS ($/ton) | B7: 230 | C7: 135.4794521 | D7: Adjust off of Corn Price
A9: Silage ($/ton) | B9: 58.4 | C9: 34.4 | D9: Equal to 8X the corn price
A10: Prairie Hay ($/ton) | B10: 135 | C10: 79.52054795 | D10: Adjust off of Corn Price
A11: Alfalfa ($/ton) | B11: 285 | C11: 167.8767123 | D11: Adjust off of Corn Price
A12: Pasture Rental ($/acre) | B12: 21 | C12: 23.1 | D12: Current price *1.10
A13: Crop Residue ($/acre) | B13: 15 | C13: 16.5 | D13: Current price *1.10
A14: Beef Cow Mineral ($/ton) | B14: 950 | C14: 1045 | D14: Current price *1.10
A15: Other Beef Mineral ($/ton) | B15: 650 | C15: 715 | D15: Current price *1.10
A17: Oct. Heifer Calf Price ($/cwt)* | B17: 218.18 | C17: 194.4714604 | D17: Adjust off of Steer Calf price
A18: Oct. Steer Calves Price ($/cwt)* | B18: 234.39 | C18: 208.92 | D18: http://www.usda.gov/oce/commodity/projections/
A19: Beef Cull cow ($/cwt) | B19: 77 | C19: 69.57909385 | D19: Fed cattle change imposed
A21: * This a predicted October price for the budget year

Sheet Feed
B1: CATTLE RATIONS TO SET FEED AND GRAZING COSTS | I1: These tables will be hidden when posted
B3: Feed Requirements with Raised Replacements | C3: (per cow unit + 16% of developing heifer + 4% of bull) | I3: Cow Ration
C4: Qty | D4: Unit | I4: Date Range | J4: Days | K4: Hay (pounds) | L4: Supplement (DDGS) (pounds) | M4: Grain (pounds) | N4: Mineral (pounds) | O4: Pasture (acres) | P4: Corn Stalks (acres)
B5: Pasture | C5: =O10+(0.04*O19)+(0.16*O28) -> 9.54 | D5: total acres per year | I5: 1/1-3/1 | J5: 60 | K5: 31 | L5: 2 | N5: 0.25
B6: Crop Residue Grazing | C6: =P10+(0.04*P19)+(0.16*P28) -> 2.08 | D6: total acres per year | I6: 3/1-5/1 | J6: 61 | K6: 32 | L6: 7 | N6: 0.25
B7: Prairie/Brome Hay | C7: =(K10+(0.04*K19)+(0.16*K28))/2000 -> 2.24832 | D7: total tons per year | I7: 5/1-10/31 | J7: 183 | N7: 0.25 | O7: 8.5
B8: Silage | C8: 0 | D8: total tons per year | I8: 11/1-12/31 | J8: 61 | L8: 3 | N8: 0.25 | P8: 2
B9: Alfalfa | C9: 0 | D9: total tons per year
B10: Total Harvested Forage | C10: =SUM(C7:C9) -> 2.24832 | D10: total tons per year | I10: Total | J10: =SUM(J5:J8) -> 365 | K10: =SUMPRODUCT($J$5:$J$8,K5:K8) -> 3812 | L10: =SUMPRODUCT($J$5:$J$8,L5:L8) -> 730 | M10: =SUMPRODUCT($J$5:$J$8,M5:M8) -> 0 | N10: =SUMPRODUCT($J$5:$J$8,N5:N8) -> 91.25 | O10: =SUM(O5:O8) -> 8.5 | P10: =SUM(P5:P8) -> 2
B11: Corn | C11: =M10+(0.04*M19)+(0.16*M28) -> 95.04 | D11: total lbs per year | J11: Tons | K11: =K10/2000 -> 1.906
B12: DDG's | C12: =L10+(0.04*L19)+(0.16*L28) -> 737.546 | D12: total lbs per year
B13: Soybean Meal | C13: 0 | D13: total lbs per year | I13: Bull Ration
B14: Total Grain/Protein Supplements | C14: =SUM(C11:C13) -> 832.586 | D14: total lbs per year | I14: Date Range | J14: Days | K14: Hay (pounds) | L14: Supplement (DDGS) (pounds) | M14: Grain (pounds) | N14: Mineral (pounds) | O14: Pasture (acres) | P14: Corn Stalks (acres)
B15: Salt and Mineral | C15: =N10+(0.04*N19)+(0.16*N28) -> 100.74 | D15: total lbs per year | I15: 1/1-4/30 | J15: 121 | K15: 40 | L15: 0.25 | N15: 0.25
I16: 5/1-10/31 | J16: 183 | N16: 0.25 | O16: 8
I17: 11/1-12/31 | J17: 61 | N17: 0.25 | P17: 2
B18: Feed Requirements with Purchased Replacements | C18: (per cow unit + 4% of bull)
C19: Qty | D19: Unit | I19: Total | J19: =SUM(J15:J17) -> 365 | K19: =SUMPRODUCT($J$15:$J$17,K15:K17) -> 4840 | L19: =SUMPRODUCT($J$15:$J$17,L15:L17) -> 30.25 | M19: =SUMPRODUCT($J$15:$J$17,M15:M17) -> 0 | N19: =SUMPRODUCT($J$15:$J$17,N15:N17) -> 91.25 | O19: =SUM(O15:O17) -> 8 | P19: =SUM(P15:P17) -> 2
B20: Pasture | C20: =O10+(0.04*O19) -> 8.82 | D20: total acres per year | J20: Tons | K20: =K19/2000 -> 2.42
B21: Crop Residue | C21: =P10+(0.04*P19) -> 2.08 | D21: total acres per year
B22: Prairie/Brome Hay | C22: =K11+(0.04*K20) -> 2.0028 | D22: total tons per year | I22: Heifer Ration
B23: Silage | C23: 0 | D23: total tons per year | I23: Date Range | J23: Days | K23: Hay (pounds) | L23: Supplement (DDGS) (pounds) | M23: Grain (pounds) | N23: Mineral (pounds) | O23: Pasture (acres) | P23: Corn Stalks (acres)
B24: Alfalfa | C24: 0 | D24: total tons per year | I24: 1/1-4/30 | J24: 121 | K24: 15.5 | L24: 0.2 | M24: 3 | N24: 0.1
B25: Total Harvested Forage | C25: =SUM(C22:C24) -> 2.0028 | D25: total tons per year | I25: 5/1-10/15 | J25: 167 | N25: =N24 -> 0.1 | O25: 4.5
B26: Corn | C26: =M10+(0.04*M19) -> 0 | D26: total lbs per year | I26: 10/15-12/31 | J26: 77 | K26: 15.5 | L26: 0.2 | M26: 3 | N26: =N25 -> 0.1
B27: DDG's | C27: =L10+(0.04*L19) -> 731.21 | D27: total lbs per year
B28: Soybean Meal | C28: 0 | D28: total lbs per year | I28: Total | J28: =SUM(J24:J26) -> 365 | K28: =SUMPRODUCT($J$24:$J$26,K24:K26) -> 3069 | L28: =SUMPRODUCT($J$24:$J$26,L24:L26) -> 39.6 | M28: =SUMPRODUCT($J$24:$J$26,M24:M26) -> 594 | N28: =SUMPRODUCT($J$24:$J$26,N24:N26) -> 36.5 | O28: =SUM(O24:O26) -> 4.5 | P28: =SUM(P24:P26) -> 0
B29: Total Grain/Protein Supplements | C29: =SUM(C26:C28) -> 731.21 | D29: total lbs per year | J29: Tons | K29: =K28/2000 -> 1.5345
B30: Salt and Mineral | C30: =N10+(0.04*N19) -> 94.9 | D30: total lbs per year

Sheet Lease with Raised Repl
A1: KSU Beef Cow Lease | C1: 2023 Production Year | G1: =IF(C1=Prices!B3,TEXT(Prices!B4,"MMM-YYYY"),TEXT(Prices!C4,"MMM-YYYY")) -> (as of Dec. 15th, 2022)
L2: Change percentages to reflect which party is contributing the expense or receiving the income
A3: Production Efficiency Information
A4: Weaning Percentage | B4: 0.91
A5: Cow Replacement Percentage | B5: 0.16 | C5: Cow Culling Percentage | G5: 0.16
A7: Revenue | B7: Price | C7: Unit | E7: Qty | F7: Unit | J7: Total per Year per Cow | L7: Cattle Owner | M7: Livestock Operator
A8: Weaned Calf Sale | B8: =0.5*(IF(C1=Prices!A1,Prices!B18,Prices!C18))+0.5*(IF(C1=Prices!A1,Prices!B17,Prices!C17)) -> 226.285 | C8: per cwt | D8: x | E8: 550 | F8: lbs | G8: x | H8: =B4 -> 0.91 | I8: = | J8: =B8*(E8/100)*H8 -> 1132.556425 | L8: Split | M8: Split
A9: Cull Cows | B9: =IF(C1=Prices!A1,Prices!B19,Prices!C19) -> 77 | C9: per cwt | D9: x | E9: 1250 | F9: lbs | G9: x | H9: =G5 -> 0.16 | I9: = | J9: =B9*(E9/100)*H9 -> 154 | L9: 1 | M9: =1-L9 -> 0
A10: Other Income | J10: 0 | L10: 1 | M10: =1-L10 -> 0
A11: Gross Income | J11: =SUM(J8:J10) -> 1286.556425
A13: Variable Costs
A14: Pasture | B14: =IF(C1=Prices!A1, Prices!B12,Prices!C12) -> 21 | C14: per acre | D14: x | E14: =Feed!C5 -> 9.54 | F14: total acres | I14: = | J14: =B14*E14 -> 200.34 | L14: 0 | M14: =1-L14 -> 1
A15: Crop Residue | B15: =IF(C1=Prices!A1, Prices!B13,Prices!C13) -> 15 | C15: per acre | D15: x | E15: =Feed!C6 -> 2.08 | F15: total acres | I15: = | J15: =B15*E15 -> 31.2 | L15: 0 | M15: =1-L15 -> 1
A16: Harvested Forage | B16: =IF(C1=Prices!A1,(((Feed!C7/Feed!C10)*Prices!B10)+((Feed!C8/Feed!C10)*Prices!B9)+((Feed!C9/Feed!C10)*Prices!B11)),((Feed!C7/Feed!C10)*Prices!C10)+((Feed!C8/Feed!C10)*Prices!C9)+((Feed!C9/Feed!C10)*Prices!C11)) -> 135 | C16: per ton | D16: x | E16: =Feed!C10 -> 2.24832 | F16: total tons | I16: = | J16: =B16*E16 -> 303.5232 | L16: 0 | M16: 1
A17: Grain/Protein Supplements | B17: =IF(C1=Prices!A1,(((Feed!C13/Feed!C14)*Prices!B6)+((Feed!C12/Feed!C14)*Prices!B7)+((Feed!C11/Feed!C14)*(Prices!B5*2000)/56)),(((Feed!C13/Feed!C14)*Prices!C6)+((Feed!C12/Feed!C14)*Prices!C7)+((Feed!C11/Feed!C14)*(Prices!C5*2000)/56))) -> 233.5060471 | C17: per ton | D17: x | E17: =Feed!C14 -> 832.586 | F17: total lbs | I17: = | J17: =(B17/2000)*E17 -> 97.20693286 | L17: 0 | M17: 1
A18: Mineral | B18: =IF(C1=Prices!A1,Prices!B14,Prices!C14) -> 950 | C18: per ton | D18: x | E18: =Feed!C15 -> 100.74 | F18: total lbs | I18: = | J18: =(B18/2000)*E18 -> 47.8515 | L18: 0 | M18: 1
A19: Other Feed | B19: 0 | C19: per unit | D19: x | E19: 0 | F19: units | I19: = | J19: =B19*E19 -> 0 | L19: 0 | M19: 1
A20: Labor | B20: 20 | C20: per hour | D20: x | E20: 8 | F20: total hours | I20: = | J20: =B20*E20 -> 160 | L20: 0.05 | M20: 0.95
A21: Vet Medicine/Drugs | J21: 40 | L21: 0.5 | M21: 0.5
A22: Replacement Females | B22: =((IF(C1=Prices!A1, Prices!B17,Prices!C17))/100)*E8 -> 1199.99 | C22: per head | D22: x | E22: =B5 -> 0.16 | F22: hd | I22: = | J22: =B22*E22 -> 191.9984 | L22: 1 | M22: 0
A23: Annual Bull Charge or A.I. | J23: =((6000-1700)/4)*0.04 -> 43 | L23: 1 | M23: 0
A24: Other Livestock Breeding/Marketing | J24: 20 | L24: 0 | M24: 1
A25: Utilities,Gas, Fuel, Oil | J25: 40 | L25: 0 | M25: 1
A26: Machinery, Facility/Equip. Repairs | J26: 60 | L26: 0 | M26: 1
A27: Other variable costs | J27: 10 | L27: 0.5 | M27: 0.5
A28: Total Variable Costs | J28: =SUM(J14:J27) -> 1245.120033 | L28: =SUMPRODUCT(J14:J27,L14:L27) -> 267.9984 | M28: =SUMPRODUCT(J14:J27,M14:M27) -> 977.1216329
A30: Fixed Costs
A31: Cattle Ownership Interest | B31: 1700 | C31: avg. value | D31: x | E31: 0.05 | F31: interest rate | I31: = | J31: =B31*E31 -> 85 | L31: 1 | M31: =1-L31 -> 0
A32: Cow Death Loss | B32: 1700 | C32: avg. value | D32: x | E32: 0.01 | F32: cow death loss | I32: = | J32: =B32*E32 -> 17 | L32: =L31 -> 1 | M32: =1-L32 -> 0
A33: Cow Depreciation | J33: 0 | L33: 1 | M33: 0
A34: Equipment/Building Depreciation | J34: 45 | L34: 0 | M34: 1
A35: Taxes | J35: 15 | L35: 0 | M35: 1
A36: Farm/Livestock Insurance | J36: 15 | L36: 0.5 | M36: =1-L36 -> 0.5
A37: Other fixed costs | J37: 0 | L37: 0.5 | M37: 0.5
A38: Total Fixed Costs | J38: =SUM(J31:J37) -> 177 | L38: =SUMPRODUCT(J31:J37,L31:L37) -> 109.5 | M38: =SUMPRODUCT(J31:J37,M31:M37) -> 67.5
A40: Total Costs | J40: =J28+J38 -> 1422.120033 | L40: =SUM(L28,L38) -> 377.4984 | M40: =SUM(M28,M38) -> 1044.621633
L41: =L40-SUMPRODUCT(L9:L10,J9:J10) -> 223.4984 | M41: =M40-SUMPRODUCT(M9:M10,J9:J10) -> 1044.621633 | N41: Expenses Contributed Less Cull Cow and Other Income
A42: Income Over Variable Costs | J42: =J11-J28 -> 41.43639214 | L42: =L41/SUM(L41,M41) -> 0.176243884 | M42: =M41/(SUM(L41,M41)) -> 0.823756116 | N42: Percentage of calves to split
A43: Income Over Total Costs | J43: =J11-J40 -> -135.5636079 | L43: =(J8*L42)+(J9*L9)+(J10*L10) -> 353.6061432 | M43: =(J8*M42)+(J9*M9)+(J10*M10) -> 932.9502818 | N43: Anticipated Total Income per cow
A45: Kansas State University, Department of Agricultural Economics - www.agmanager.info
A46: Publication: AM-FMG-CowLease | I46: =TEXT(Introduction!L8,"MMM. DD, YYYY") -> Version- 12.15.2022
A48: =A1 -> KSU Beef Cow Lease
A92: Kansas State University, Department of Agricultural Economics - www.agmanager.info
A93: =A46 -> Publication: AM-FMG-CowLease | I93: =I46 -> Version- 12.15.2022
A95: =A1 -> KSU Beef Cow Lease
A100: Budget Assumptions
A102: Cow-Calf Feed Requirements | B102: (per cow unit + 16% of developing heifer + 4% of bull)
B103: Qty | C103: Unit
A104: Pasture | B104: =Feed!C5 -> 9.54 | C104: total acres per year
A105: Crop Residue Grazing | B105: =Feed!C6 -> 2.08 | C105: total acres per year
A106: Prairie/Brome Hay | B106: =Feed!C7 -> 2.24832 | C106: total tons per year
A107: Silage | B107: =Feed!C8 -> 0 | C107: total tons per year
A108: Alfalfa | B108: =Feed!C9 -> 0 | C108: total tons per year
A109: Total Harvested Forage | B109: =Feed!C10 -> 2.24832 | C109: total tons per year
A110: Corn | B110: =Feed!C11 -> 95.04 | C110: total lbs per year
A111: DDG's | B111: =Feed!C12 -> 737.546 | C111: total lbs per year
A112: Soybean Meal | B112: =Feed!C13 -> 0 | C112: total lbs per year
A113: Total Grain/Protein Supplements | B113: =Feed!C14 -> 832.586 | C113: total lbs per year
A114: Salt and Mineral | B114: =Feed!C15 -> 100.74 | C114: total lbs per year
A117: Default Cow-Calf Prices
B118: =Prices!A1 -> 2023 Production Year | C118: Five Years Out
A119: =Prices!A5 -> Corn ($/bu) | B119: =Prices!B5 -> 7.3 | C119: =Prices!C5 -> 4.3
A120: =Prices!A7 -> DDGS ($/ton) | B120: =Prices!B7 -> 230 | C120: =Prices!C7 -> 135.4794521
A121: =Prices!A10 -> Prairie Hay ($/ton) | B121: =Prices!B10 -> 135 | C121: =Prices!C10 -> 79.52054795
A122: =Prices!A12 -> Pasture Rental ($/acre) | B122: =Prices!B12 -> 21 | C122: =Prices!C12 -> 23.1
A123: =Prices!A13 -> Crop Residue ($/acre) | B123: =Prices!B13 -> 15 | C123: =Prices!C13 -> 16.5
A124: =Prices!A14 -> Beef Cow Mineral ($/ton) | B124: =Prices!B14 -> 950 | C124: =Prices!C14 -> 1045
A125: =Prices!A17 -> Oct. Heifer Calf Price ($/cwt)* | B125: =Prices!B17 -> 218.18 | C125: =Prices!C17 -> 194.4714604
A126: =Prices!A18 -> Oct. Steer Calves Price ($/cwt)* | B126: =Prices!B18 -> 234.39 | C126: =Prices!C18 -> 208.92
A127: =Prices!A19 -> Beef Cull cow ($/cwt) | B127: =Prices!B19 -> 77 | C127: =Prices!C19 -> 69.57909385
A133: Kansas State University, Department of Agricultural Economics - www.agmanager.info
A134: =A93 -> Publication: AM-FMG-CowLease | I134: =I93 -> Version- 12.15.2022
A137: SUMMARY PAGE
A138: KSU Beef Cow Lease | C138: =C1 -> 2023 Production Year | G138: =G1 -> (as of Dec. 15th, 2022)
A140: Production Efficiency Information
A141: Weaning Percentage | B141: =B4 -> 0.91
A142: Cow Replacement Percentage | B142: =B5 -> 0.16 | C142: Cow Culling Percentage | G142: =G5 -> 0.16
A144: Revenue | B144: Total per Year per Cow | C144: Cattle Owner | D144: Livestock Operator
A145: Weaned Calf Sale | B145: =J8 -> 1132.556425 | C145: =L8 -> Split | D145: Split
A146: Cull Cows | B146: =J9 -> 154 | C146: =L9 -> 1 | D146: =1-C146 -> 0
A147: Other Income | B147: =J10 -> 0 | C147: =L10 -> 1 | D147: =1-C147 -> 0
A148: Gross Income | B148: =J11 -> 1286.556425
A150: Variable Costs
A151: Pasture | B151: =J14 -> 200.34 | C151: =L14 -> 0 | D151: =1-C151 -> 1
A152: Crop Residue | B152: 31.2 | C152: 0 | D152: =1-C152 -> 1
A153: Harvested Forage | B153: 303.5232 | C153: 0 | D153: 1
A154: Grain/Protein Supplements | B154: 97.20693286 | C154: 0 | D154: 1
A155: Mineral | B155: 47.8515 | C155: 0 | D155: 1
A156: Other Feed | B156: 0 | C156: 0 | D156: 1
A157: Labor | B157: 160 | C157: 0.05 | D157: 0.95
A158: Vet Medicine/Drugs | B158: 40 | C158: 0.5 | D158: 0.5
A159: Replacement Females | B159: 191.9984 | C159: 1 | D159: 0
A160: Annual Bull Charge or A.I. | B160: 43 | C160: 1 | D160: 0
A161: Other Livestock Breeding/Marketing | B161: 20 | C161: 0 | D161: 1
A162: Utilities,Gas, Fuel, Oil | B162: 40 | C162: 0 | D162: 1
A163: Machinery, Facility/Equip. Repairs | B163: 60 | C163: 0 | D163: 1
A164: Other variable costs | B164: 10 | C164: 0.5 | D164: 0.5
A165: Total Variable Costs | B165: 1245.120033 | C165: 267.9984 | D165: =M28 -> 977.1216329
A167: Fixed Costs
A168: Cattle Ownership Interest | B168: =J31 -> 85 | C168: =L31 -> 1 | D168: =1-C168 -> 0
A169: Cow Death Loss | B169: =J32 -> 17 | C169: =L32 -> 1 | D169: =1-C169 -> 0
A170: Equipment/Building Depreciation | B170: =J34 -> 45 | C170: =L35 -> 0 | D170: 1
A171: Taxes | B171: =J35 -> 15 | C171: =L36 -> 0.5 | D171: 0.5
A172: Farm/Livestock Insurance | B172: =J36 -> 15 | C172: =L37 -> 0.5 | D172: =1-C172 -> 0.5
A173: Other fixed costs | B173: =J37 -> 0 | C173: =L37 -> 0.5 | D173: =1-C173 -> 0.5
A174: Total Fixed Costs | B174: =J38 -> 177 | C174: =L38 -> 109.5 | D174: =M38 -> 67.5
A176: Total Costs | B176: =J40 -> 1422.120033 | C176: =L40 -> 377.4984 | D176: 1044.621633
C177: 223.4984 | D177: 1044.621633 | F177: Expenses Contributed Less Cull Cow and Other Income
A178: Income Over Variable Costs | B178: =J42 -> 41.43639214 | C178: 0.176243884 | D178: 0.823756116 | F178: Percentage of calves to split
A179: Income Over Total Costs | B179: =J43 -> -135.5636079 | C179: 353.6061432 | D179: 932.9502818 | F179: Anticipated Total Income per cow
A183: Kansas State University, Department of Agricultural Economics - www.agmanager.info
A184: =A134 -> Publication: AM-FMG-CowLease | I184: =I134 -> Version- 12.15.2022

Sheet Lease with Purchased Repl
A1: KSU Beef Cow Lease | C1: 2020 Production Year | G1: =IF(C1=Prices!B3,TEXT(Prices!B4,"MMM-YYYY"),TEXT(Prices!C4,"MMM-YYYY")) -> (Nov. 2022 USDA)
L2: Change percentages to reflect which party is contributing the expense or receiving the income
A3: Production Efficiency Information
A4: Weaning Percentage | B4: 0.91
A5: Cow Replacement Percentage | B5: 0.16 | C5: Cull Cow Percentage | G5: 0.16
A7: Revenue | B7: Price | C7: Unit | E7: Qty | F7: Unit | J7: Total per Year per Cow | L7: Cattle Owner | M7: Livestock Operator
A8: Weaned Calf Sale | B8: =0.5*(IF(C1=Prices!A1,Prices!B18,Prices!C18))+0.5*(IF(C1=Prices!A1,Prices!B17,Prices!C17)) -> 201.6957302 | C8: per cwt | D8: x | E8: 550 | F8: lbs | G8: x | H8: =B4 -> 0.91 | I8: = | J8: =B8*(E8/100)*H8 -> 1009.48713 | L8: Split | M8: Split
A9: Cull Cows | B9: =IF(C1=Prices!A1,Prices!B19,Prices!C19) -> 69.57909385 | C9: per cwt | D9: x | E9: 1250 | F9: lbs | G9: x | H9: =G5 -> 0.16 | I9: = | J9: =B9*(E9/100)*H9 -> 139.1581877 | L9: 1 | M9: =1-L9 -> 0
A10: Other Income | J10: 0 | L10: 1 | M10: =1-L10 -> 0
A11: Gross Income | J11: =SUM(J8:J10) -> 1148.645317
A13: Variable Costs
A14: Pasture | B14: =IF(C1=Prices!A1, Prices!B12,Prices!C12) -> 23.1 | C14: per acre | D14: x | E14: =Feed!C20 -> 8.82 | F14: total acres | I14: = | J14: =B14*E14 -> 203.742 | L14: 0 | M14: =1-L14 -> 1
A15: Crop Residue | B15: =IF(C1=Prices!A1, Prices!B13,Prices!C13) -> 16.5 | C15: per acre | D15: x | E15: =Feed!C21 -> 2.08 | F15: total acres | I15: = | J15: =B15*E15 -> 34.32 | L15: 0 | M15: =1-L15 -> 1
A16: Harvested Forage | B16: =IF(C1=Prices!A1,(((Feed!C7/Feed!C10)*Prices!B10)+((Feed!C8/Feed!C10)*Prices!B9)+((Feed!C9/Feed!C10)*Prices!B11)),((Feed!C7/Feed!C10)*Prices!C10)+((Feed!C8/Feed!C10)*Prices!C9)+((Feed!C9/Feed!C10)*Prices!C11)) -> 79.52054795 | C16: per ton | D16: x | E16: =Feed!C25 -> 2.0028 | F16: total tons | I16: = | J16: =B16*E16 -> 159.2637534 | L16: 0 | M16: 1
A17: Grain/Protein Supplements | B17: =IF(C1=Prices!A1,(((Feed!C13/Feed!C14)*Prices!B6)+((Feed!C12/Feed!C14)*Prices!B7)+((Feed!C11/Feed!C14)*(Prices!B5*2000)/56)),(((Feed!C13/Feed!C14)*Prices!C6)+((Feed!C12/Feed!C14)*Prices!C7)+((Feed!C11/Feed!C14)*(Prices!C5*2000)/56))) -> 137.5446579 | C17: per ton | D17: x | E17: =Feed!C29 -> 731.21 | F17: total lbs | I17: = | J17: =(B17/2000)*E17 -> 50.28701464 | L17: 0 | M17: 1
A18: Mineral | B18: =IF(C1=Prices!A1,Prices!B14,Prices!C14) -> 1045 | C18: per ton | D18: x | E18: =Feed!C30 -> 94.9 | F18: total lbs | I18: = | J18: =(B18/2000)*E18 -> 49.58525 | L18: 0 | M18: 1
A19: Other Feed | B19: 0 | C19: per unit | D19: x | E19: 0 | F19: units | I19: = | J19: =B19*E19 -> 0 | L19: 0 | M19: 1
A20: Labor | B20: 20 | C20: per hour | D20: x | E20: 6 | F20: total hours | I20: = | J20: =B20*E20 -> 120 | L20: 0.1 | M20: 0.9
A21: Vet Medicine/Drugs | J21: =0.87*'Lease with Raised Repl'!J21 -> 34.8 | L21: 0.5 | M21: 0.5
A22: Replacement Females | B22: 1600 | C22: per head | D22: x | E22: =B5 -> 0.16 | F22: hd | I22: = | J22: =B22*E22 -> 256 | L22: 1 | M22: 0
A23: Annual Bull Charge or A.I. | J23: =0.87*'Lease with Raised Repl'!J23 -> 37.41 | L23: 1 | M23: 0
A24: Other Livestock Breeding/Marketing | J24: =0.87*'Lease with Raised Repl'!J24 -> 17.4 | L24: 0 | M24: 1
A25: Utilities,Gas, Fuel, Oil | J25: =0.87*'Lease with Raised Repl'!J25 -> 34.8 | L25: 0 | M25: 1
A26: Machinery, Facility/Equip. Repairs | J26: =0.87*'Lease with Raised Repl'!J26 -> 52.2 | L26: 0 | M26: 1
A27: Other variable costs | J27: =0.87*'Lease with Raised Repl'!J27 -> 8.7 | L27: 0.5 | M27: 0.5
A28: Total Variable Costs | J28: =SUM(J14:J27) -> 1058.508018 | L28: =SUMPRODUCT(J14:J27,L14:L27) -> 327.16 | M28: =SUMPRODUCT(J14:J27,M14:M27) -> 731.3480181
A30: Fixed Costs
A31: Cattle Ownership Interest | B31: 1700 | C31: avg. value | D31: x | E31: 0.05 | F31: interest rate | I31: = | J31: =B31*E31 -> 85 | L31: 1 | M31: =1-L31 -> 0
A32: Cow Death Loss | B32: 1700 | C32: avg. value | D32: x | E32: 0.01 | F32: cow death loss | I32: = | J32: =B32*E32 -> 17 | L32: =L31 -> 1 | M32: =1-L32 -> 0
A33: Cow Depreciation | J33: 0 | L33: =L31 -> 1 | M33: 0
A34: Equipment/Building Depreciation | J34: 45 | L34: 0 | M34: 1
A35: Taxes | J35: 15 | L35: 0 | M35: 1
A36: Farm/Livestock Insurance | J36: =0.87*'Lease with Raised Repl'!J36 -> 13.05 | L36: 0.5 | M36: =1-L36 -> 0.5
A37: Other fixed costs | J37: 0 | L37: 0.5 | M37: 0.5
A38: Total Fixed Costs | J38: =SUM(J31:J37) -> 175.05 | L38: =SUMPRODUCT(J31:J37,L31:L37) -> 108.525 | M38: =SUMPRODUCT(J31:J37,M31:M37) -> 66.525
A40: Total Costs | J40: =J28+J38 -> 1233.558018 | L40: =SUM(L28,L38) -> 435.685 | M40: =SUM(M28,M38) -> 797.8730181
L41: =L40-SUMPRODUCT(L9:L10,J9:J10) -> 296.5268123 | M41: =M40-SUMPRODUCT(M9:M10,J9:J10) -> 797.8730181 | N41: Expenses Contributed Less Cull Cow and Other Income
A42: Income Over Variable Costs | J42: =J11-J28 -> 90.13729925 | L42: =L41/SUM(L41,M41) -> 0.2709492491 | M42: =M41/(SUM(L41,M41)) -> 0.7290507509 | N42: Percentage of calves to split
A43: Income Over Total Costs | J43: =J11-J40 -> -84.91270075 | L43: =(J8*L42)+(J9*L9)+(J10*L10) -> 412.6779675 | M43: =(J8*M42)+(J9*M9)+(J10*M10) -> 735.9673498 | N43: Anticipated Total Income per cow
A46: Kansas State University, Department of Agricultural Economics - www.agmanager.info
A47: Publication: AM-FMG-CowLease | I47: =TEXT(Introduction!L8,"MMM. DD, YYYY") -> Version- 12.15.2022
A49: =A1 -> KSU Beef Cow Lease
A93: Kansas State University, Department of Agricultural Economics - www.agmanager.info
A94: =A47 -> Publication: AM-FMG-CowLease | I94: =I47 -> Version- 12.15.2022
A96: =A1 -> KSU Beef Cow Lease
A101: Budget Assumptions
A103: Cow-Calf Feed Requirements | B103: (per cow unit + 4% of bull)
B104: Qty | C104: Unit
A105: Pasture | B105: =Feed!C20 -> 8.82 | C105: total acres per year
A106: Crop Residue Grazing | B106: =Feed!C21 -> 2.08 | C106: total acres per year
A107: Prairie/Brome Hay | B107: =Feed!C22 -> 2.0028 | C107: total tons per year
A108: Silage | B108: =Feed!C23 -> 0 | C108: total tons per year
A109: Alfalfa | B109: =Feed!C24 -> 0 | C109: total tons per year
A110: Total Harvested Forage | B110: =Feed!C25 -> 2.0028 | C110: total tons per year
A111: Corn | B111: =Feed!C26 -> 0 | C111: total lbs per year
A112: DDG's | B112: =Feed!C27 -> 731.21 | C112: total lbs per year
A113: Soybean Meal | B113: =Feed!C28 -> 0 | C113: total lbs per year
A114: Total Grain/Protein Supplements | B114: =Feed!C29 -> 731.21 | C114: total lbs per year
A115: Salt and Mineral | B115: =Feed!C30 -> 94.9 | C115: total lbs per year
A117: Default Cow-Calf Prices
B118: =Prices!A1 -> 2023 Production Year | C118: Five Years Out
A119: =Prices!A5 -> Corn ($/bu) | B119: =Prices!B5 -> 7.3 | C119: =Prices!C5 -> 4.3
A120: =Prices!A7 -> DDGS ($/ton) | B120: =Prices!B7 -> 230 | C120: =Prices!C7 -> 135.4794521
A121: =Prices!A10 -> Prairie Hay ($/ton) | B121: =Prices!B10 -> 135 | C121: =Prices!C10 -> 79.52054795
A122: =Prices!A12 -> Pasture Rental ($/acre) | B122: =Prices!B12 -> 21 | C122: =Prices!C12 -> 23.1
A123: =Prices!A13 -> Crop Residue ($/acre) | B123: =Prices!B13 -> 15 | C123: =Prices!C13 -> 16.5
A124: =Prices!A14 -> Beef Cow Mineral ($/ton) | B124: =Prices!B14 -> 950 | C124: =Prices!C14 -> 1045
A125: =Prices!A17 -> Oct. Heifer Calf Price ($/cwt)* | B125: =Prices!B17 -> 218.18 | C125: =Prices!C17 -> 194.4714604
A126: =Prices!A18 -> Oct. Steer Calves Price ($/cwt)* | B126: =Prices!B18 -> 234.39 | C126: =Prices!C18 -> 208.92
A127: =Prices!A19 -> Beef Cull cow ($/cwt) | B127: =Prices!B19 -> 77 | C127: =Prices!C19 -> 69.57909385
A133: Kansas State University, Department of Agricultural Economics - www.agmanager.info
A134: =A94 -> Publication: AM-FMG-CowLease | I134: =I94 -> Version- 12.15.2022
A137: SUMMARY PAGE
A138: KSU Beef Cow Lease | C138: =C1 -> 2020 Production Year | G138: =G1 -> (Nov. 2022 USDA)
A140: Production Efficiency Information
A141: Weaning Percentage | B141: =B4 -> 0.91
A142: Cow Replacement Percentage | B142: =B5 -> 0.16 | C142: Cull Cow Percentage | G142: =G5 -> 0.16
A144: Revenue | B144: Total per Year per Cow | C144: Cattle Owner | D144: Livestock Operator
A145: Weaned Calf Sale | B145: =J8 -> 1009.48713 | C145: =L8 -> Split | D145: Split
A146: Cull Cows | B146: =J9 -> 139.1581877 | C146: =L9 -> 1 | D146: =1-C146 -> 0
A147: Other Income | B147: =J10 -> 0 | C147: =L10 -> 1 | D147: =1-C147 -> 0
A148: Gross Income | B148: =J11 -> 1148.645317
A150: Variable Costs
A151: Pasture | B151: =J14 -> 203.742 | C151: =L14 -> 0 | D151: =1-C151 -> 1
A152: Crop Residue | B152: 34.32 | C152: 0 | D152: =1-C152 -> 1
A153: Harvested Forage | B153: 159.2637534 | C153: 0 | D153: 1
A154: Grain/Protein Supplements | B154: 50.28701464 | C154: 0 | D154: 1
A155: Mineral | B155: 49.58525 | C155: 0 | D155: 1
A156: Other Feed | B156: 0 | C156: 0 | D156: 1
A157: Labor | B157: 120 | C157: 0.1 | D157: 0.9
A158: Vet Medicine/Drugs | B158: 34.8 | C158: 0.5 | D158: 0.5
A159: Replacement Females | B159: 256 | C159: 1 | D159: 0
A160: Annual Bull Charge or A.I. | B160: 37.41 | C160: 1 | D160: 0
A161: Other Livestock Breeding/Marketing | B161: 17.4 | C161: 0 | D161: 1
A162: Utilities,Gas, Fuel, Oil | B162: 34.8 | C162: 0 | D162: 1
A163: Machinery, Facility/Equip. Repairs | B163: 52.2 | C163: 0 | D163: 1
A164: Other variable costs | B164: 8.7 | C164: 0.5 | D164: 0.5
A165: Total Variable Costs | B165: 1058.508018 | C165: 327.16 | D165: =M28 -> 731.3480181
A167: Fixed Costs
A168: Cattle Ownership Interest | B168: =J31 -> 85 | C168: =L31 -> 1 | D168: =1-C168 -> 0
A169: Cow Death Loss | B169: 17 | C169: 1 | D169: =1-C169 -> 0
A170: Cow Depreciation | B170: 0 | C170: 1 | D170: 0
A171: Equipment/Building Depreciation | B171: 45 | C171: 0 | D171: 1
A172: Taxes | B172: 15 | C172: 0 | D172: 1
A173: Farm/Livestock Insurance | B173: 13.05 | C173: 0.5 | D173: =1-C173 -> 0.5
A174: Other fixed costs | B174: 0 | C174: 0.5 | D174: =1-C174 -> 0.5
A175: Total Fixed Costs | B175: 175.05 | C175: 108.525 | D175: =M38 -> 66.525
A177: Total Costs | B177: =J40 -> 1233.558018 | C177: =L40 -> 435.685 | D177: 797.8730181
C178: 296.5268123 | D178: 797.8730181 | F178: Expenses Contributed Less Cull Cow and Other Income
A179: Income Over Variable Costs | B179: =J42 -> 90.13729925 | C179: 0.2709492491 | D179: 0.7290507509 | F179: Percentage of calves to split
A180: Income Over Total Costs | B180: =J43 -> -84.91270075 | C180: 412.6779675 | D180: 735.9673498 | F180: Anticipated Total Income per cow
A185: Kansas State University, Department of Agricultural Economics - www.agmanager.info
A186: =A134 -> Publication: AM-FMG-CowLease | I186: =I134 -> Version- 12.15.2022
